[Event "Early-Titled-Tuesday-Blitz-May-28-2024"]
[Site "Chess.com"]
[Date "2024.05.28"]
[Round "9"]
[White "agvega14"]
[Black "ChrisTool2"]
[Result "1/2-1/2"]
[WhiteElo "2261"]
[BlackElo "2369"]
[TimeControl "180+1"]
[EndTime "9:48:10 PDT"]
[Termination "Game drawn - insufficient material"]

1. e4 {[%clk 0:03:00.9]} 1... c5 {[%clk 0:02:59.2]} 2. Nf3 {[%clk 0:02:59.8]}
2... d6 {[%clk 0:02:59]} 3. c3 {[%clk 0:02:58.7]} 3... Nf6 {[%clk 0:02:59]} 4.
h3 {[%clk 0:02:58.5]} 4... g6 {[%clk 0:02:57.5]} 5. d3 {[%clk 0:02:57.7]} 5...
Bg7 {[%clk 0:02:57.5]} 6. Be3 {[%clk 0:02:57.1]} 6... Nc6 {[%clk 0:02:57.5]} 7.
Be2 {[%clk 0:02:57.5]} 7... O-O {[%clk 0:02:57.7]} 8. O-O {[%clk 0:02:57.9]}
8... Bd7 {[%clk 0:02:57.7]} 9. a4 {[%clk 0:02:57.7]} 9... a6 {[%clk 0:02:57]}
10. Qc2 {[%clk 0:02:48.1]} 10... Qc7 {[%clk 0:02:57.2]} 11. Nbd2 {[%clk
0:02:46.4]} 11... Rab8 {[%clk 0:02:54]} 12. d4 {[%clk 0:02:20.7]} 12... cxd4
{[%clk 0:02:49.4]} 13. cxd4 {[%clk 0:02:19]} 13... Rfc8 {[%clk 0:02:49]} 14.
Rfc1 {[%clk 0:02:12.5]} 14... Qd8 {[%clk 0:02:49.1]} 15. Qd1 {[%clk 0:02:01.5]}
15... d5 {[%clk 0:02:48.1]} 16. e5 {[%clk 0:02:00.8]} 16... Ne4 {[%clk
0:02:47.9]} 17. Qb3 {[%clk 0:01:44.3]} 17... Be6 {[%clk 0:02:36.2]} 18. Qd1
{[%clk 0:01:00.9]} 18... h6 {[%clk 0:02:19.6]} 19. Bd3 {[%clk 0:00:50.9]} 19...
Nxd2 {[%clk 0:02:07.2]} 20. Qxd2 {[%clk 0:00:50.1]} 20... Na5 {[%clk 0:02:07.8]}
21. Rxc8 {[%clk 0:00:47.1]} 21... Rxc8 {[%clk 0:02:08.7]} 22. Qb4 {[%clk
0:00:45]} 22... Bf5 {[%clk 0:01:41.8]} 23. Bxf5 {[%clk 0:00:39.5]} 23... gxf5
{[%clk 0:01:42.7]} 24. b3 {[%clk 0:00:34.8]} 24... e6 {[%clk 0:01:41.4]} 25. Bd2
{[%clk 0:00:30.2]} 25... b6 {[%clk 0:01:35.5]} 26. Rc1 {[%clk 0:00:22.9]} 26...
Rxc1+ {[%clk 0:01:27.8]} 27. Bxc1 {[%clk 0:00:22.8]} 27... Bf8 {[%clk 0:01:28]}
28. Qc3 {[%clk 0:00:19.5]} 28... b5 {[%clk 0:01:24.1]} 29. axb5 {[%clk
0:00:18.9]} 29... axb5 {[%clk 0:01:25]} 30. Bd2 {[%clk 0:00:19.1]} 30... b4
{[%clk 0:01:21.7]} 31. Qc2 {[%clk 0:00:19.4]} 31... Qb6 {[%clk 0:01:18.5]} 32.
Qd3 {[%clk 0:00:19]} 32... Nc6 {[%clk 0:01:14.9]} 33. g4 {[%clk 0:00:18]} 33...
fxg4 {[%clk 0:01:13.3]} 34. hxg4 {[%clk 0:00:18.6]} 34... Na7 {[%clk 0:01:10.6]}
35. Kg2 {[%clk 0:00:18.6]} 35... Qb5 {[%clk 0:01:09.6]} 36. Qe3 {[%clk
0:00:18.3]} 36... Qc6 {[%clk 0:01:03.4]} 37. g5 {[%clk 0:00:18.4]} 37... Qc2
{[%clk 0:00:55.8]} 38. gxh6 {[%clk 0:00:18]} 38... Qg6+ {[%clk 0:00:55.9]} 39.
Kf1 {[%clk 0:00:17.5]} 39... Nb5 {[%clk 0:00:55.8]} 40. Ke2 {[%clk 0:00:15.6]}
40... Qe4 {[%clk 0:00:52]} 41. Kd1 {[%clk 0:00:13.1]} 41... Qxe3 {[%clk
0:00:27.9]} 42. Bxe3 {[%clk 0:00:13.1]} 42... Nc3+ {[%clk 0:00:22.6]} 43. Kc2
{[%clk 0:00:12.9]} 43... Kh7 {[%clk 0:00:19.3]} 44. Ng5+ {[%clk 0:00:12.9]}
44... Kg6 {[%clk 0:00:19.8]} 45. h7 {[%clk 0:00:12.6]} 45... Bg7 {[%clk
0:00:17.9]} 46. f4 {[%clk 0:00:11.4]} 46... Ne4 {[%clk 0:00:13.4]} 47. Bc1
{[%clk 0:00:11.3]} 47... Nxg5 {[%clk 0:00:11.9]} 48. fxg5 {[%clk 0:00:11]} 48...
Kxh7 {[%clk 0:00:12.4]} 49. Bd2 {[%clk 0:00:10.9]} 49... Kg6 {[%clk 0:00:12.9]}
50. Bxb4 {[%clk 0:00:10.7]} 50... Kxg5 {[%clk 0:00:13.1]} 51. Bd2+ {[%clk
0:00:11.2]} 51... Kf5 {[%clk 0:00:13.3]} 52. Kd3 {[%clk 0:00:11.1]} 52... Bf8
{[%clk 0:00:12.7]} 53. b4 {[%clk 0:00:11.3]} 53... f6 {[%clk 0:00:12.6]} 54.
exf6 {[%clk 0:00:10.6]} 54... Kxf6 {[%clk 0:00:12.8]} 55. b5 {[%clk 0:00:09.7]}
55... Bd6 {[%clk 0:00:13.4]} 56. b6 {[%clk 0:00:09.4]} 56... Ke7 {[%clk
0:00:13.2]} 57. b7 {[%clk 0:00:09.5]} 57... Kd7 {[%clk 0:00:13.5]} 58. Ba5
{[%clk 0:00:09]} 58... Kc6 {[%clk 0:00:12.3]} 59. Bd2 {[%clk 0:00:06]} 59...
Kxb7 {[%clk 0:00:12.5]} 60. Ke3 {[%clk 0:00:05.1]} 60... Kc6 {[%clk 0:00:12.7]}
61. Kd3 {[%clk 0:00:06]} 61... Kb5 {[%clk 0:00:13.1]} 62. Bc3 {[%clk 0:00:06.7]}
62... Ka4 {[%clk 0:00:13.3]} 63. Bd2 {[%clk 0:00:07]} 63... Kb3 {[%clk
0:00:13.7]} 64. Bc3 {[%clk 0:00:07.3]} 64... Bb4 {[%clk 0:00:13.7]} 65. Ba1
{[%clk 0:00:07.2]} 65... Ba5 {[%clk 0:00:13.2]} 66. Ke2 {[%clk 0:00:05]} 66...
Kc2 {[%clk 0:00:12.2]} 67. Kf3 {[%clk 0:00:04.3]} 67... Kd3 {[%clk 0:00:11.3]}
68. Kf4 {[%clk 0:00:04.1]} 68... Bc3 {[%clk 0:00:11.2]} 69. Ke5 {[%clk
0:00:04.5]} 69... Bxa1 {[%clk 0:00:11.1]} 70. Kxe6 {[%clk 0:00:04.3]} 70... Bxd4
{[%clk 0:00:12]} 71. Kxd5 {[%clk 0:00:04.5]} 1/2-1/2

[Event "Early-Titled-Tuesday-Blitz-May-28-2024"]
[Site "Chess.com"]
[Date "2024.05.28"]
[Round "9"]
[White "Alphafischer2019"]
[Black "LLariMarc"]
[Result "1/2-1/2"]
[WhiteElo "2665"]
[BlackElo "2510"]
[TimeControl "180+1"]
[EndTime "9:48:23 PDT"]
[Termination "Game drawn by repetition"]

1. Nf3 {[%clk 0:02:54]} 1... d5 {[%clk 0:02:58.9]} 2. g3 {[%clk 0:02:53.4]} 2...
Nf6 {[%clk 0:02:57.7]} 3. Bg2 {[%clk 0:02:53.3]} 3... e6 {[%clk 0:02:57.6]} 4.
c4 {[%clk 0:02:50.9]} 4... Be7 {[%clk 0:02:56.9]} 5. O-O {[%clk 0:02:49.8]} 5...
O-O {[%clk 0:02:56.6]} 6. cxd5 {[%clk 0:02:43.5]} 6... exd5 {[%clk 0:02:55.1]}
7. d3 {[%clk 0:02:44.4]} 7... c5 {[%clk 0:02:52.6]} 8. Nc3 {[%clk 0:02:41.7]}
8... Nc6 {[%clk 0:02:51.6]} 9. Bf4 {[%clk 0:02:39.7]} 9... h6 {[%clk 0:02:49.7]}
10. Rc1 {[%clk 0:02:38.5]} 10... Be6 {[%clk 0:02:48.4]} 11. Ne5 {[%clk
0:02:15.3]} 11... Nxe5 {[%clk 0:02:46.9]} 12. Bxe5 {[%clk 0:02:16.2]} 12... Rc8
{[%clk 0:02:46.1]} 13. d4 {[%clk 0:02:16.2]} 13... c4 {[%clk 0:02:37.5]} 14. Qa4
{[%clk 0:02:14.2]} 14... a6 {[%clk 0:02:35.8]} 15. Rfd1 {[%clk 0:02:11.1]} 15...
Ng4 {[%clk 0:02:32.8]} 16. Bf4 {[%clk 0:02:09]} 16... g5 {[%clk 0:02:28.1]} 17.
Bd2 {[%clk 0:02:03.5]} 17... Qd6 {[%clk 0:02:27.9]} 18. Be1 {[%clk 0:01:56.7]}
18... b5 {[%clk 0:02:24.6]} 19. Qc2 {[%clk 0:01:56.2]} 19... f5 {[%clk
0:02:24.7]} 20. a3 {[%clk 0:01:33.5]} 20... Kg7 {[%clk 0:02:24]} 21. Na2 {[%clk
0:01:32.5]} 21... Qc7 {[%clk 0:02:17]} 22. Bb4 {[%clk 0:01:31.9]} 22... a5
{[%clk 0:02:15.7]} 23. Bxe7 {[%clk 0:01:31.4]} 23... Qxe7 {[%clk 0:02:16.6]} 24.
Nc3 {[%clk 0:01:31.5]} 24... Qd7 {[%clk 0:02:14.3]} 25. e3 {[%clk 0:01:28.9]}
25... b4 {[%clk 0:02:09.7]} 26. axb4 {[%clk 0:01:27.6]} 26... axb4 {[%clk
0:02:10.6]} 27. Nb1 {[%clk 0:01:21.7]} 27... Ra8 {[%clk 0:02:09.6]} 28. Qd2
{[%clk 0:01:21.5]} 28... Qa4 {[%clk 0:02:02.5]} 29. Re1 {[%clk 0:01:17.6]} 29...
Nf6 {[%clk 0:01:58.5]} 30. Qe2 {[%clk 0:01:13.8]} 30... Qb3 {[%clk 0:01:54.4]}
31. h4 {[%clk 0:01:00.8]} 31... Ra2 {[%clk 0:01:52.3]} 32. hxg5 {[%clk
0:00:57.8]} 32... hxg5 {[%clk 0:01:52]} 33. Rc2 {[%clk 0:00:58.4]} 33... c3
{[%clk 0:01:48.8]} 34. Rec1 {[%clk 0:00:55.7]} 34... Rxb2 {[%clk 0:01:26.6]} 35.
Rxb2 {[%clk 0:00:55.3]} 35... Qxb2 {[%clk 0:01:27.2]} 36. Qxb2 {[%clk
0:00:51.7]} 36... cxb2 {[%clk 0:01:28.1]} 37. Rc2 {[%clk 0:00:49.4]} 37... Rc8
{[%clk 0:01:28.6]} 38. Rxb2 {[%clk 0:00:49.4]} 38... Rc1+ {[%clk 0:01:27.3]} 39.
Bf1 {[%clk 0:00:49.6]} 39... f4 {[%clk 0:01:13]} 40. Rxb4 {[%clk 0:00:40.7]}
40... Bh3 {[%clk 0:01:12.7]} 41. Nd2 {[%clk 0:00:41.2]} 41... Ne4 {[%clk
0:01:12]} 42. Rb1 {[%clk 0:00:40.7]} 42... Rxb1 {[%clk 0:00:57.7]} 43. Nxb1
{[%clk 0:00:41.6]} 43... Bxf1 {[%clk 0:00:56.9]} 44. Kxf1 {[%clk 0:00:39.8]}
44... fxe3 {[%clk 0:00:57]} 45. fxe3 {[%clk 0:00:36.9]} 45... Nxg3+ {[%clk
0:00:57.1]} 46. Kg2 {[%clk 0:00:36.5]} 46... Ne4 {[%clk 0:00:56.3]} 47. Na3
{[%clk 0:00:36.6]} 47... Kf6 {[%clk 0:00:56.1]} 48. Nb5 {[%clk 0:00:35.3]} 48...
g4 {[%clk 0:00:53.3]} 49. Nc7 {[%clk 0:00:34.8]} 49... Nc3 {[%clk 0:00:53.7]}
50. Kg3 {[%clk 0:00:32.6]} 50... Kf5 {[%clk 0:00:49.7]} 51. Ne8 {[%clk
0:00:25.1]} 51... Ne4+ {[%clk 0:00:35.2]} 52. Kh4 {[%clk 0:00:18.6]} 52... g3
{[%clk 0:00:11.9]} 53. Ng7+ {[%clk 0:00:17.9]} 53... Kg6 {[%clk 0:00:10.2]} 54.
Nh5 {[%clk 0:00:18.5]} 54... Kf5 {[%clk 0:00:08.4]} 55. Nxg3+ {[%clk 0:00:17.1]}
55... Nxg3 {[%clk 0:00:07.5]} 56. Kxg3 {[%clk 0:00:18]} 56... Kg5 {[%clk
0:00:08]} 57. Kf3 {[%clk 0:00:10.6]} 57... Kf5 {[%clk 0:00:08.2]} 58. Ke2 {[%clk
0:00:10.9]} 58... Ke6 {[%clk 0:00:08.8]} 59. Kd2 {[%clk 0:00:08.9]} 59... Kd7
{[%clk 0:00:09.2]} 60. Kc3 {[%clk 0:00:09.4]} 60... Kc7 {[%clk 0:00:09.1]} 61.
Kd3 {[%clk 0:00:07.4]} 61... Kd7 {[%clk 0:00:08.9]} 62. Kd2 {[%clk 0:00:06.8]}
62... Kd6 {[%clk 0:00:08.5]} 63. Kc3 {[%clk 0:00:07]} 63... Kc7 {[%clk
0:00:08.2]} 64. Kc2 {[%clk 0:00:06.5]} 64... Kc6 {[%clk 0:00:08.2]} 65. Kd2
{[%clk 0:00:04.8]} 65... Kd6 {[%clk 0:00:08.1]} 66. Ke2 {[%clk 0:00:05.4]} 66...
Ke6 {[%clk 0:00:08.4]} 67. Kf2 {[%clk 0:00:06.1]} 67... Kf6 {[%clk 0:00:08.6]}
68. Kg2 {[%clk 0:00:06.8]} 68... Kg6 {[%clk 0:00:09]} 69. Kh3 {[%clk 0:00:07]}
69... Kh5 {[%clk 0:00:09.2]} 70. Kg3 {[%clk 0:00:07.6]} 70... Kg5 {[%clk
0:00:09.7]} 71. Kf2 {[%clk 0:00:07.5]} 71... Kf6 {[%clk 0:00:09.2]} 72. Ke2
{[%clk 0:00:08]} 72... Ke6 {[%clk 0:00:09.6]} 1/2-1/2

[Event "Early-Titled-Tuesday-Blitz-May-28-2024"]
[Site "Chess.com"]
[Date "2024.05.28"]
[Round "9"]
[White "IMRosen"]
[Black "ccccvhhhj"]
[Result "1-0"]
[WhiteElo "2721"]
[BlackElo "2464"]
[TimeControl "180+1"]
[EndTime "9:48:27 PDT"]
[Termination "IMRosen won on time"]

1. e4 {[%clk 0:03:00.9]} 1... e6 {[%clk 0:03:00.5]} 2. c4 {[%clk 0:02:58.3]}
2... d5 {[%clk 0:03:01.4]} 3. cxd5 {[%clk 0:02:59.2]} 3... exd5 {[%clk
0:03:01.6]} 4. Qb3 {[%clk 0:03:00]} 4... Nf6 {[%clk 0:03:01.8]} 5. e5 {[%clk
0:02:59]} 5... Ne4 {[%clk 0:03:01.9]} 6. Nc3 {[%clk 0:02:58.7]} 6... Nxc3 {[%clk
0:02:41.1]} 7. dxc3 {[%clk 0:02:58.3]} 7... Be7 {[%clk 0:02:40.8]} 8. Bd3 {[%clk
0:02:56.4]} 8... c5 {[%clk 0:02:37.2]} 9. Qd1 {[%clk 0:02:39.4]} 9... Nc6 {[%clk
0:02:36.2]} 10. Bf4 {[%clk 0:02:32.7]} 10... Bg5 {[%clk 0:02:21]} 11. Bg3 {[%clk
0:02:32.3]} 11... O-O {[%clk 0:02:16.3]} 12. Nf3 {[%clk 0:02:32.6]} 12... Be7
{[%clk 0:02:07]} 13. h3 {[%clk 0:02:13.8]} 13... f6 {[%clk 0:01:57.2]} 14. O-O
{[%clk 0:01:59.3]} 14... fxe5 {[%clk 0:01:44.2]} 15. Nxe5 {[%clk 0:01:59.4]}
15... Nxe5 {[%clk 0:01:44.7]} 16. Bxe5 {[%clk 0:02:00.3]} 16... Bf6 {[%clk
0:01:40]} 17. Qh5 {[%clk 0:01:35.5]} 17... g6 {[%clk 0:00:53.3]} 18. Bxf6 {[%clk
0:01:34.7]} 18... Rxf6 {[%clk 0:00:49.8]} 19. Qe5 {[%clk 0:01:31.2]} 19... Qd6
{[%clk 0:00:45.9]} 20. Qxd6 {[%clk 0:00:55.8]} 20... Rxd6 {[%clk 0:00:45.6]} 21.
Rad1 {[%clk 0:00:56.5]} 21... Be6 {[%clk 0:00:38]} 22. Rfe1 {[%clk 0:00:56.8]}
22... Kf7 {[%clk 0:00:36.3]} 23. Re3 {[%clk 0:00:56.4]} 23... Rad8 {[%clk
0:00:36.6]} 24. Rf3+ {[%clk 0:00:45.4]} 24... Kg7 {[%clk 0:00:36.7]} 25. Bc2
{[%clk 0:00:39.2]} 25... d4 {[%clk 0:00:33]} 26. cxd4 {[%clk 0:00:38.9]} 26...
cxd4 {[%clk 0:00:33.9]} 27. Bb3 {[%clk 0:00:37.5]} 27... Bxb3 {[%clk 0:00:31.9]}
28. Rxb3 {[%clk 0:00:38.4]} 28... b6 {[%clk 0:00:29.8]} 29. Kf1 {[%clk
0:00:38.9]} 29... Kf6 {[%clk 0:00:29.7]} 30. Ke2 {[%clk 0:00:38.7]} 30... Ke5
{[%clk 0:00:30.2]} 31. Kd3 {[%clk 0:00:38.4]} 31... Kd5 {[%clk 0:00:23]} 32.
Rb5+ {[%clk 0:00:37.5]} 32... Kc6 {[%clk 0:00:21.4]} 33. Rg5 {[%clk 0:00:38.4]}
33... Rf6 {[%clk 0:00:20.3]} 34. Rd2 {[%clk 0:00:35.1]} 34... Rdf8 {[%clk
0:00:18.5]} 35. f3 {[%clk 0:00:32.6]} 35... Rd8 {[%clk 0:00:19]} 36. Rc2+ {[%clk
0:00:32.7]} 36... Kb7 {[%clk 0:00:16.5]} 37. Re5 {[%clk 0:00:33.3]} 37... Rf7
{[%clk 0:00:16.8]} 38. Rc4 {[%clk 0:00:32.4]} 38... Rfd7 {[%clk 0:00:15.7]} 39.
Re4 {[%clk 0:00:33]} 39... Rf8 {[%clk 0:00:07.4]} 40. Rcxd4 {[%clk 0:00:31.9]}
40... Rxd4+ {[%clk 0:00:08.3]} 41. Rxd4 {[%clk 0:00:32.8]} 41... Kc6 {[%clk
0:00:09]} 42. f4 {[%clk 0:00:30.1]} 42... Re8 {[%clk 0:00:07.8]} 43. Re4 {[%clk
0:00:26.8]} 43... Rd8+ {[%clk 0:00:08.2]} 44. Ke2 {[%clk 0:00:27.2]} 44... Rd7
{[%clk 0:00:06.7]} 45. g4 {[%clk 0:00:26.7]} 45... Kd5 {[%clk 0:00:05.4]} 46.
Re8 {[%clk 0:00:25.8]} 46... Kd4 {[%clk 0:00:02.7]} 47. Re3 {[%clk 0:00:20.6]}
47... Rc7 {[%clk 0:00:02.3]} 48. f5 {[%clk 0:00:12.7]} 48... gxf5 {[%clk
0:00:02.2]} 49. gxf5 {[%clk 0:00:13.6]} 49... Rf7 {[%clk 0:00:02.3]} 50. Ra3
{[%clk 0:00:07.3]} 50... a5 {[%clk 0:00:01.6]} 51. Rb3 {[%clk 0:00:07.3]} 51...
Kc5 {[%clk 0:00:02.3]} 52. Rf3 {[%clk 0:00:07.2]} 52... Kd4 {[%clk 0:00:01.9]}
53. h4 {[%clk 0:00:04.4]} 53... Ke4 {[%clk 0:00:01.8]} 54. Rb3 {[%clk 0:00:05]}
54... Rf6 {[%clk 0:00:01.7]} 55. Rb5 {[%clk 0:00:05.4]} 55... Kf4 {[%clk
0:00:01]} 56. a3 {[%clk 0:00:04.3]} 56... Kg4 {[%clk 0:00:01.5]} 57. Ke3 {[%clk
0:00:03.2]} 57... Kxh4 {[%clk 0:00:01.9]} 58. Kf4 {[%clk 0:00:03]} 58... Rf8
{[%clk 0:00:01]} 59. Rb3 {[%clk 0:00:03.4]} 59... h5 {[%clk 0:00:01.2]} 60. Rf3
{[%clk 0:00:03.1]} 60... Rc8 {[%clk 0:00:01]} 61. f6 {[%clk 0:00:02.7]} 61...
Rc4+ {[%clk 0:00:01]} 62. Kf5 {[%clk 0:00:03.4]} 62... Rc5+ {[%clk 0:00:01]} 63.
Kg6 {[%clk 0:00:03.8]} 63... Kg4 {[%clk 0:00:01.9]} 64. Rf1 {[%clk 0:00:03.3]}
64... Rc8 {[%clk 0:00:01.4]} 65. f7 {[%clk 0:00:03.5]} 65... h4 {[%clk 0:00:02]}
66. f8=Q {[%clk 0:00:02.7]} 66... Rxf8 {[%clk 0:00:02.7]} 67. Rxf8 {[%clk
0:00:03.3]} 67... h3 {[%clk 0:00:03.6]} 68. Rh8 {[%clk 0:00:04]} 68... Kg3
{[%clk 0:00:04.1]} 69. Kf6 {[%clk 0:00:04.6]} 69... h2 {[%clk 0:00:05]} 70. Ke5
{[%clk 0:00:05.2]} 70... Kg2 {[%clk 0:00:05.9]} 71. Kd5 {[%clk 0:00:05.2]} 1-0

[Event "Early-Titled-Tuesday-Blitz-May-28-2024"]
[Site "Chess.com"]
[Date "2024.05.28"]
[Round "9"]
[White "1stSecond"]
[Black "Polish_fighter3000"]
[Result "0-1"]
[WhiteElo "2923"]
[BlackElo "3109"]
[TimeControl "180+1"]
[EndTime "9:48:31 PDT"]
[Termination "Polish_fighter3000 won by resignation"]

1. d4 {[%clk 0:03:00.9]} 1... Nf6 {[%clk 0:02:57.8]} 2. Bg5 {[%clk 0:03:01.3]}
2... h6 {[%clk 0:02:56.8]} 3. Bxf6 {[%clk 0:03:01.1]} 3... exf6 {[%clk
0:02:57.7]} 4. e3 {[%clk 0:02:59.8]} 4... f5 {[%clk 0:02:51.7]} 5. c4 {[%clk
0:02:59.1]} 5... Bb4+ {[%clk 0:02:45]} 6. Nc3 {[%clk 0:02:59.3]} 6... Bxc3+
{[%clk 0:02:43.6]} 7. bxc3 {[%clk 0:03:00.2]} 7... d6 {[%clk 0:02:43.7]} 8. g3
{[%clk 0:03:00]} 8... Nd7 {[%clk 0:02:36.6]} 9. Bg2 {[%clk 0:02:55.2]} 9... Nf6
{[%clk 0:02:34.5]} 10. Ne2 {[%clk 0:02:47.4]} 10... O-O {[%clk 0:02:32.7]} 11.
Nf4 {[%clk 0:02:46.4]} 11... Rb8 {[%clk 0:02:18.8]} 12. Qa4 {[%clk 0:02:45.1]}
12... a6 {[%clk 0:02:00.7]} 13. Rb1 {[%clk 0:02:45]} 13... b6 {[%clk 0:01:59.8]}
14. O-O {[%clk 0:02:44.3]} 14... a5 {[%clk 0:01:58.4]} 15. c5 {[%clk 0:02:38.8]}
15... dxc5 {[%clk 0:01:43.6]} 16. dxc5 {[%clk 0:02:37.6]} 16... Bd7 {[%clk
0:01:42.8]} 17. Qd4 {[%clk 0:02:28.9]} 17... b5 {[%clk 0:01:11.6]} 18. c6 {[%clk
0:02:21.8]} 18... Be6 {[%clk 0:01:11.2]} 19. Nxe6 {[%clk 0:01:57.7]} 19... fxe6
{[%clk 0:01:12.1]} 20. Qe5 {[%clk 0:01:47.4]} 20... Qd6 {[%clk 0:00:26.9]} 21.
Rxb5 {[%clk 0:01:46.7]} 21... Qxe5 {[%clk 0:00:26.1]} 22. Rxe5 {[%clk
0:01:46.6]} 22... Kf7 {[%clk 0:00:27]} 23. a4 {[%clk 0:01:33.4]} 23... Rfd8
{[%clk 0:00:18.9]} 24. Rxa5 {[%clk 0:01:32.5]} 24... Ra8 {[%clk 0:00:18.7]} 25.
Rxa8 {[%clk 0:01:32]} 25... Rxa8 {[%clk 0:00:19.6]} 26. Ra1 {[%clk 0:01:32.1]}
26... Ra5 {[%clk 0:00:19.7]} 27. Kf1 {[%clk 0:01:19.4]} 27... Ke7 {[%clk
0:00:16.6]} 28. Ke2 {[%clk 0:01:20]} 28... Kd6 {[%clk 0:00:16.4]} 29. Kd3 {[%clk
0:01:16]} 29... Ng4 {[%clk 0:00:16.4]} 30. Kc4 {[%clk 0:01:07.7]} 30... Nxf2
{[%clk 0:00:15.3]} 31. Kb4 {[%clk 0:00:58.5]} 31... Ra8 {[%clk 0:00:13.4]} 32.
a5 {[%clk 0:00:58.9]} 32... Nd3+ {[%clk 0:00:12.7]} 33. Kc4 {[%clk 0:00:38.7]}
33... Ne5+ {[%clk 0:00:10.7]} 34. Kd4 {[%clk 0:00:39.2]} 34... Ra6 {[%clk
0:00:07.6]} 35. c4 {[%clk 0:00:31.6]} 35... Nxc6+ {[%clk 0:00:06.1]} 36. Bxc6
{[%clk 0:00:32.2]} 36... e5+ {[%clk 0:00:05.9]} 37. Kc3 {[%clk 0:00:30.4]} 37...
Kxc6 {[%clk 0:00:06.4]} 38. Kb4 {[%clk 0:00:30.6]} 38... Ra8 {[%clk 0:00:03.7]}
39. a6 {[%clk 0:00:26.5]} 39... g5 {[%clk 0:00:02.9]} 40. c5 {[%clk 0:00:21.7]}
40... f4 {[%clk 0:00:02.3]} 41. exf4 {[%clk 0:00:12.6]} 41... gxf4 {[%clk
0:00:03.2]} 42. gxf4 {[%clk 0:00:12.4]} 42... exf4 {[%clk 0:00:03.5]} 43. Kc4
{[%clk 0:00:04.6]} 43... f3 {[%clk 0:00:03.1]} 44. h4 {[%clk 0:00:03.7]} 44...
Rf8 {[%clk 0:00:01.4]} 45. a7 {[%clk 0:00:02.4]} 45... Kb7 {[%clk 0:00:01.1]}
46. h5 {[%clk 0:00:01.7]} 46... f2 {[%clk 0:00:01.2]} 47. Rf1 {[%clk 0:00:01.7]}
47... Kxa7 {[%clk 0:00:01.6]} 48. Kd5 {[%clk 0:00:01.9]} 48... Kb7 {[%clk
0:00:02.1]} 49. Rb1+ {[%clk 0:00:01.9]} 49... Kc8 {[%clk 0:00:02.4]} 50. Rf1
{[%clk 0:00:02.5]} 50... Kd7 {[%clk 0:00:02.4]} 51. c6+ {[%clk 0:00:02.7]} 51...
Ke7 {[%clk 0:00:02.9]} 52. Ke5 {[%clk 0:00:03.3]} 52... Rf6 {[%clk 0:00:03.2]}
53. Kd5 {[%clk 0:00:03.2]} 53... Rf5+ {[%clk 0:00:03.8]} 54. Ke4 {[%clk
0:00:03.4]} 54... Ke6 {[%clk 0:00:03.8]} 55. Ke3 {[%clk 0:00:03.8]} 55... Kd6
{[%clk 0:00:04.1]} 56. Ke4 {[%clk 0:00:04]} 56... Rf8 {[%clk 0:00:03.9]} 57. Ke3
{[%clk 0:00:02.8]} 57... Kxc6 {[%clk 0:00:04.3]} 58. Ke2 {[%clk 0:00:03.2]}
58... Rf5 {[%clk 0:00:03]} 59. Rc1+ {[%clk 0:00:03.5]} 59... Rc5 {[%clk
0:00:03.6]} 60. Rh1 {[%clk 0:00:03]} 60... Rf5 {[%clk 0:00:02.2]} 61. Kf1 {[%clk
0:00:02.9]} 61... Kd5 {[%clk 0:00:02.3]} 62. Rh3 {[%clk 0:00:01.6]} 62... c5
{[%clk 0:00:02.3]} 63. Rg3 {[%clk 0:00:02.3]} 63... c4 {[%clk 0:00:02.2]} 64.
Rg6 {[%clk 0:00:02.3]} 64... c3 {[%clk 0:00:02.4]} 65. Rg8 {[%clk 0:00:02.3]}
65... Kd4 {[%clk 0:00:02.7]} 66. Rd8+ {[%clk 0:00:02.2]} 66... Rd5 {[%clk
0:00:02.6]} 67. Rc8 {[%clk 0:00:02.4]} 67... Rc5 {[%clk 0:00:03]} 68. Rd8+
{[%clk 0:00:02.9]} 68... Kc4 {[%clk 0:00:03.5]} 69. Rd1 {[%clk 0:00:03]} 69...
c2 {[%clk 0:00:03.2]} 70. Rc1 {[%clk 0:00:03.6]} 70... Kd3 {[%clk 0:00:03.8]}
71. Kxf2 {[%clk 0:00:04.3]} 71... Kd2 {[%clk 0:00:04.2]} 72. Rh1 {[%clk
0:00:04.8]} 72... c1=Q {[%clk 0:00:04.1]} 73. Kg2 {[%clk 0:00:04.5]} 73... Rg5+
{[%clk 0:00:03.4]} 0-1